Cogmind - Beta 15 @@@ ROGUE MODE // 2025.05.15 @ 13:49:39 Player: Cholfo Result: Destroyed by 11-NFY(R) with Subdweller Beam Cannon Performance ------------- Evolutions (0) 0 Regions Visited (2) 400 Robots Destroyed (14) 70 Value Destroyed (344) 344 Prototype IDs (0) 0 Alien Tech Used (0) 0 Bonus (0) 0 TOTAL SCORE: 814 Bonus ------- None Cogmind --------- Core Integrity 0/250 Matter 284/300 Energy 100/100 System Corruption 1% Temperature Cool (9) Movement Treading (160) Location -10/Subcaves Parts ------- > --- POWER (1) -------- (None) > --- PROPULSION (2) --- Light Treads Spiked Treads > --- UTILITY (2) ------ Large Storage Unit Makeshift Light Armor Plating > --- WEAPON (2) ------- Light Cannon > --- INVENTORY (15) --- Subdweller Power Source Subdweller Power Source Light Treads Subdweller Monowheel High-capacity Matter Pod (200) Subdweller Optics Seismic Detector Medium Laser Subdweller Beam Cannon Light Assault Rifle Battle Rifle Battle Rifle Light Cannon Subdweller Shrapnel Launcher Makeshift Spear Peak State ------------ > --- POWER ------------ (None) > --- PROPULSION ------- Light Treads Spiked Treads > --- UTILITY ---------- Large Storage Unit Makeshift Light Armor Plating > --- WEAPON ----------- Heavy Battle Rifle Light Cannon > --- INVENTORY -------- Subdweller Power Source Subdweller Power Source Light Treads Wheel Subdweller Monowheel High-capacity Matter Pod Subdweller Optics Seismic Detector Medium Laser Subdweller Beam Cannon Light Assault Rifle Battle Rifle Battle Rifle Light Cannon Subdweller Shrapnel Launcher [Rating: 15] Favorites ----------- Power Ion Engine Engine Ion Engine Propulsion Light Treads Treads Light Treads Wheel Wheel Utility Large Storage Unit Device Seismic Detector Storage Large Storage Unit Protection Makeshift Light Armor Plating Weapon Light Cannon Energy Gun Medium Laser Ballistic Gun Heavy Battle Rifle Ballistic Cannon Light Cannon Build | -11 -10 -10 ------- Run | Yrd Mat Sub Slots Evolved . | . . . Power . | . . . Propulsion . | . . . Utility . | . . . Weapon . | . . . Parts Attached 19 | 8 2 9 Power 2 | 1 . 1 Engine 2 | 1 . 1 Core . | . . . Reactor . | . . . Propulsion 5 | 2 . 3 Treads 3 | 2 . 1 Leg . | . . . Wheel 2 | . . 2 Hover . | . . . Flight . | . . . Utility 4 | 2 1 1 Device 1 | 1 . . Storage 2 | 1 1 . Processor . | . . . Hackware . | . . . Protection 1 | . . 1 Artifact . | . . . Weapon 8 | 3 1 4 Energy Gun 1 | 1 . . Energy Cannon . | . . . Ballistic Gun 3 | 2 . 1 Ballistic Cannon 4 | . 1 3 Launcher . | . . . Special Weapon . | . . . Impact Weapon . | . . . Slashing Weapon . | . . . Piercing Weapon . | . . . Special Melee Weapon . | . . . Unidentified Prototypes . | . . . Parts Lost 7 | . . 7 Power 2 | . . 2 Propulsion 2 | . . 2 Utility . | . . . Weapon 3 | . . 3 Highest Loss Streak 3 | . . 3 To Critical Strikes . | . . . Average Backups 10 | 2 7 12 Power 1 | . 1 1 Propulsion 2 | 1 2 2 Utility 1 | . . 2 Weapon 4 | . 3 5 Tool/Special . | . . . Unused Backups 13 | . 2 11 Power 2 | . . 2 Propulsion 4 | . 2 2 Utility 2 | . . 2 Weapon 5 | . . 5 Tool/Special . | . . . Average Slot Usage (%) 91 | . 100 88 Engine 8 | . 14 5 Treads 19 | . 28 16 Wheel 6 | . . 8 Device 10 | . 14 8 Storage 14 | . 14 14 Protection 3 | . . 5 Energy Gun 7 | . 14 5 Ballistic Gun 6 | . 2 7 Ballistic Cannon 14 | . 11 15 Peak Build Rating 15 | 7 7 15 Average Rating 9 | 5 7 10 On Entrance 4 | . 7 7 Naked Turns . | . . . Heaviest Build 33 | 14 31 33 Greatest Support 40 | 40 40 40 Greatest Overweight (x) 3 | . . 3 Average Overweight (x) . | . . . Largest Inventory Capacity 15 | 8 15 15 Average Capacity 13 | 7 10 15 Most Carried 15 | 4 9 15 Average Carried 10 | 2 7 12 Final Capacity 15 | 8 15 15 Final Carried 15 | 4 9 15 Class Distribution -------------------- 100% | Mutant Dominant Class ---------------- Mutant | -10/Materials Mutant | -10/Subcaves Resources | -11 -10 -10 ----------- Run | Yrd Mat Sub Matter Collected 836 | 237 249 350 Remotely . | . . . Salvage Created 341 | 29 82 230 Parts 23 | 2 8 13 Haulers Intercepted 1 | . 1 . Recyclers Shooed . | . . . Parts Field Recycled . | . . . Retrieved Matter . | . . . Parts Self-Destructed 14 | . . 14 Prevented . | . . . Kills | -11 -10 -10 ------- Run | Yrd Mat Sub Combat Hostiles Destroyed 12 | . 3 9 Guns 2 | . 1 1 Cannons 10 | . 2 8 Classes Destroyed 5 | 1 2 2 Tunneler 1 | 1 . . Hauler 1 | . 1 . Swarmer 5 | . 3 2 Sentry 1 | . . 1 Subdweller 6 | . . 6 Best Kill Streak 3 | 1 3 2 Combat Bots Only 3 | . 3 2 Max Kills in Single Turn 1 | 1 1 1 Gunslinging . | . . . Exploded . | . . . Melee . | . . . Uniques/NPCs Destroyed . | . . . Combat | -11 -10 -10 -------- Run | Yrd Mat Sub Hostile Shots Fired 84 | . 15 69 Missed 17 | . 3 14 Hits 67 | . 12 55 Projectile 67 | . 12 55 Damage Taken 1272 | . 101 1171 Core 254 | . 23 231 Absorbed by Shields . | . . . Core Remaining (%) 100 | 100 . . Volleys Fired 61 | 6 8 47 Largest 2 | 2 2 2 Hottest 80 | 70 80 80 Shots Fired 122 | 12 16 94 Gun 66 | 12 8 46 Cannon 56 | . 8 48 Launcher . | . . . Special . | . . . Kinetic 73 | 6 8 59 Thermal 49 | 6 8 35 Explosive . | . . . Electromagnetic . | . . . Robot Hit Streak 14 | 6 5 14 Robot Miss Streak 4 | 1 2 4 Penetration Max . | . . . Secondary Targets . | . . . Shots Hit Robots 92 | 9 10 73 Core Hits 23 | 2 5 16 Critical Kills . | . . . Critical Parts Destroyed . | . . . Critical Strikes 3 | . . 3 Burn 3 | . . 3 Melee Attacks . | . . . Impact . | . . . Slashing . | . . . Piercing . | . . . Sneak Attacks . | . . . Combat Hostiles . | . . . Follow-up Attacks . | . . . Damage Inflicted 1311 | 98 147 1066 Guns 654 | 98 64 492 Cannons 657 | . 83 574 Explosions . | . . . Melee . | . . . Ramming . | . . . Kinetic 907 | 36 83 788 Thermal 404 | 62 64 278 Explosive . | . . . Electromagnetic . | . . . Impact . | . . . Slashing . | . . . Piercing . | . . . Highest Corruption 1 | . 1 1 Average Corruption 1 | . 1 1 Corruption Purged . | . . . Corruption Blocked . | . . . Effects 5 | . . 5 Matter Fused 2 | . . 2 Energy Discharges 1 | . . 1 Data Loss (minor) 1 | . . 1 Data Loss (major) 1 | . . 1 Overload Shots . | . . . Overflow Damage . | . . . Projectiles . | . . . Explosions . | . . . Melee . | . . . Knockbacks 10 | . 2 8 Impact . | . . . Kinetic 9 | . 2 7 Secondary 1 | . . 1 Self-Inflicted Damage . | . . . Shots . | . . . Rammed . | . . . Targets Rammed . | . . . Kicked . | . . . Crushed . | . . . Highest Temperature 90 | 80 90 . Average Temperature 39 | 40 39 . Received Heat Transfer 279 | . . 279 Siege Activations . | . . . Martial Activations . | . . . Shielding Activations . | . . . Robots Disrupted . | . . . Combat Hostiles . | . . . Robots Corrupted . | . . . Combat Hostiles . | . . . Parts Fried . | . . . Impact Corruptions . | . . . Robots Melted . | . . . Combat Hostiles . | . . . Parts Melted 1 | . . 1 Heat Transferred 1406 | 185 185 1036 Parts Sabotaged . | . . . Parts Stolen . | . . . Parts Stripped . | . . . Power Chain Reactions . | . . . Alert | -11 -10 -10 ------- Run | Yrd Mat Sub Maximum Alert Level . | . . . Low Security (%) 100 | 100 100 . Level 1 . | . . . Level 2 . | . . . Level 3 . | . . . Level 4 . | . . . Level 5 . | . . . High Security . | . . . Max Security . | . . . Peak Influence 60 | 5 60 . Initial . | . . . Average 9 | . 11 . Influence Increases 152 | 5 77 70 Destroy 0b10 Robot/C 120 | . 60 60 Destroy 0b10 Robot/NC 10 | 5 5 . Destroy Leader 22 | . 12 10 Influence Decreases 152 | 5 77 70 Time Decay 152 | 5 77 70 Squads Dispatched 1 | . 1 . Investigation . | . . . Extermination . | . . . Reinforcement 1 | . 1 . Assault . | . . . Garrison . | . . . Intercept . | . . . Searches Triggered . | . . . Construction Impeded . | . . . Haulers Reinforced . | . . . Active Scanning Responses . | . . . Cargo Convoy Interrupts . | . . . Stealth | -11 -10 -10 --------- Run | Yrd Mat Sub Distress Signals 1 | . 1 . Communications Jammed . | . . . Distress Signals . | . . . Times Spotted 18 | . 6 12 Peak Tracking Total 5 | . 5 3 Tactical Retreats 1 | . . 1 Traps | -11 -10 -10 ------- Run | Yrd Mat Sub Traps Triggered 3 | . 1 2 Indirectly . | . . . Trap Hack Attempts . | . . . Triggered . | . . . Disarmed . | . . . Reprogrammed . | . . . Reused . | . . . Traps Extracted . | . . . Installed . | . . . Triggered . | . . . Machines | -11 -10 -10 ---------- Run | Yrd Mat Sub Machines Disabled . | . . . Max in Single Turn . | . . . Machines Repaired . | . . . Machines Dismantled . | . . . Machines Sabotaged . | . . . Overloaded Fab Kills . | . . . Hacking | -11 -10 -10 --------- Run | Yrd Mat Sub Machines Accessed . | . . . Terminals . | . . . Fabricators . | . . . Repair Stations . | . . . Recycling Units . | . . . Scanalyzers . | . . . Garrison Access . | . . . Total Hacks . | . . . Successful . | . . . Failed . | . . . Catastrophic . | . . . Database Lockouts . | . . . Manual . | . . . Terminals . | . . . Fabricators . | . . . Repair Stations . | . . . Recycling Units . | . . . Scanalyzers . | . . . Garrison Access . | . . . Terminal Hacks . | . . . Fabricator Hacks . | . . . Repair Station Hacks . | . . . Recycling Unit Hacks . | . . . Scanalyzer . | . . . Garrison Access Hacks . | . . . Unauthorized Hacks . | . . . Terminals . | . . . Fabricators . | . . . Repair Stations . | . . . Recycling Units . | . . . Scanalyzers . | . . . Garrison Access . | . . . Data Cores Recovered . | . . . Used . | . . . Hacking Detections . | . . . Full Trace Events . | . . . Feedback Events . | . . . Feedback Blocked . | . . . Robot Schematics Acquired . | . . . Robots Built . | . . . Authchips . | . . . Time . | . . . Total Robot Build Rating . | . . . Part Schematics Acquired . | . . . Parts Built . | . . . Authchips . | . . . Time . | . . . Total Part Build Rating . | . . . Parts Repaired . | . . . Time . | . . . Parts Recycled . | . . . Recycled Matter . | . . . Retrieved Matter . | . . . Retrieved Components . | . . . Parts Scanalyzed . | . . . Part Schematics Acquired . | . . . Parts Damaged . | . . . Bothacking | -11 -10 -10 ------------ Run | Yrd Mat Sub Used RIF Installer . | . . . Robots Hacked . | . . . Non-combat . | . . . Combat . | . . . Robot Hacks Applied . | . . . Relay Couplers Released . | . . . Fabnet Peak Effective % . | . . . Robots Rewired . | . . . Allies Hacked . | . . . Hacks Repelled . | . . . Allies | -11 -10 -10 -------- Run | Yrd Mat Sub Total Allies . | . . . Largest Group . | . . . Highest-Rated Group . | . . . Highest-Rated Ally . | . . . Total Orders . | . . . Ally Attacks . | . . . Total Damage . | . . . Kills . | . . . Allies Corrupted . | . . . Allies Melted . | . . . Intel | -11 -10 -10 ------- Run | Yrd Mat Sub Active Infowar (turns) 1037 | 17 373 647 Seismic 1037 | 17 373 647 Robot Analysis Total . | . . . Derelict Logs Recovered 1 | . . 1 Drone Launches . | . . . Drone Recoveries . | . . . Exploration | -11 -10 -10 ------------- Run | Yrd Mat Sub Turns Passed 1513 | 94 373 1046 Spaces Moved 842 | 41 201 600 Core 3 | 3 . . Treads 591 | 38 201 352 Legs . | . . . Wheels 248 | . . 248 Hover . | . . . Flight . | . . . Fastest Speed 50 | 50 160 95 Average Speed 146 | 151 160 140 Slowest Speed 240 | 160 160 240 Overloaded Moves . | . . . Propulsion Burnouts . | . . . Robots Hopped . | . . . Potential Cave-ins . | . . . Cave-ins Triggered . | . . . Exploration Rate (%) 23 | 4 29 38 Regions Visited 2 Branch Regions 1 Pre-discovered Areas . | . . . Known Exits Taken . | . . . Unknown Exits Taken 2 | 1 1 . Scrap Searched 9 | . . 9 Spaces Dug . | . . . Terrain Destroyed . | . . . Melee . | . . . Projectile . | . . . AOE . | . . . Terrain Rammed . | . . . Walls Destroyed . | . . . Machines Disabled . | . . . Actions | -11 -10 -10 --------- Run | Yrd Mat Sub Total 998 | 59 238 701 Wait 46 | . 16 30 Move 840 | 40 200 600 Hop . | . . . Pick Up 24 | 5 8 11 Fast Attach 7 | 6 . 1 Attach 6 | 1 . 5 Detach 1 | . . 1 Swap 8 | 1 2 5 Drop 5 | . 4 1 Fire 61 | 6 8 47 Melee . | . . . Ram . | . . . Kick . | . . . Crush . | . . . Escape Stasis . | . . . Rewire . | . . . Trap . | . . . Miscellaneous . | . . . Route ------- -11/Scrapyard -10/Materials -10/Subcaves History --------- Turn | Location | Event 19 | -11/Scrapyard | Discovered new exit (range 16) 95 | -11/Scrapyard | Entered Materials 305 | -10/Materials | Build established: Mutant 415 | -10/Materials | Discovered new exit (range 11) 468 | -10/Materials | Entered Subcaves 469 | -10/Subcaves | Approached by a straggling Scientist 620 | -10/Subcaves | Lost 3 parts (1p1n1w) 926 | -10/Subcaves | Disturbed a concealed Subdweller 930 | -10/Subcaves | Core integrity fell below 50% 1103 | -10/Subcaves | Lost 3 parts (1p1n1w) 1507 | -10/Subcaves | Core integrity fell below 20% 1514 | -10/Subcaves | Destroyed by 11-NFY(R) with Subdweller Beam Cannon Last Messages --------------- 01134_ Searching scrap... 01134_ Found Sub. Optics. 01134_ Found Sub. Monowheel. 01134_ Found 61 Matter. 01135_ Acquired 10 matter. 01142_ Triggered Piercing Trap. 01142_ Spikes shoot up from the floor. 01142_ Critical hit (Impale). 01152_ Searching scrap... 01152_ Found Mak. Spear. 01152_ Found 35 Matter. 01156_ Searching scrap... 01156_ Found Hvy. Battle Rifle. 01156_ Found 63 Matter. 01159_ System corrupted: Energy discharge (-39). 01159_ Dropped Wheel. 01159_ Acquired Mak. Spear. 01264_ System corrupted: Component data lost. 01505_ 11-NFY(R) knocked back. 01512_ Hvy. Battle Rifle destroyed. Map ----- +----------------------------------------------------+ | | | | | ?????????????????????????????????????????????????? | | ?????????????????????????????????????????????????? | | ?????????????????????????????????????????????????? | | ?????????????????????????????????????????????????? | | ?????????????????????????????????????????????????? | | ?????????????????????????????????????????????????? | | ?????????????????????????????????????????????????? | | ?????????????????????????????????????????????????? | | ?????????????????????????????????????????????????? | | ?????????????????????????????????????????????????? | | ?????????????????????????????????????????????????? | | ?????????????????????????????????????????????????? | | ?????????????????????????????????????????????????? | | ?????????????????????????????????????????????????? | | ???????????????????##????????????????????????????? | | ????????????????#### #????###????????????####????? | | ????????????????# #???# ##???????##### ##???? | | ????????????????# ##?# ##????### ##### | | ?????????????????# ### ##???# | | ??????????? "" ### ##??# | | ???????????""" ##?# | | ???????????? "" R ### | | ?????????????""""" ### ##### | | ??????????????"" " ????#@ ##### #### | | ??????????????"" "??????# ##???## ## # | | ??????????????""????????###?????# | | ????????????????????????????????## ## | | ?????????????????????????????????# ## #### | | ?????????????????????????????????## ####??# | | ??????????????????????????????????####?????# | | ???????????????????????????????????????????# | | ???????????????????????????????????????????## | | ????????????????????????????????????????????# ## | | ????????????????????????????????????????????# #? | | ???????????#??????????????????????????????? ##? | | ??????????? ??????????????????????????????# ###?# | | ??????????? ??????????????????????????????## ????# | | ??????????? ##?????????????????????????????##????# | | ???????????# ##?????????????????????????????????## | | ??????????? #????????????????????????????????## | | ############ #???????????????????????????????## | | ## # # ###?????????????????????????????# | | ##????????????????#??????????## | | #???????????????## ??????### # | | # ## # % % #??????????????##" ???#### # | | ######### ##?????????????# "" ??# # | | ????????## ####?????????#" "" #?# | | ?????????### % ## # #??" "" ## % ## # | +----------------------------------------------------+ Best States ------------- Heat Dissipation 25 Energy Generation 10 Energy Capacity 250 Matter Stores 300 Matter Capacity 300 Sight Range 16 Terrain Scan Density 10 Armor Coverage 100 Evasion (%) 41 Recoil Reduction 2 Item Schematics ----------------- None Robot Schematics ------------------ None Fabricated ------------ Nothing Repaired ---------- Nothing Alien Tech Used ----------------- None Achievements -------------- None Challenges ------------ None Game ------ Seed RapidSpliceExtrapolator Manual? 0 Play Time 00:13:25 Cumulative 14.3 hours Start 2025.05.15 @ 13:38:57 End 2025.05.15 @ 13:49:39 Sessions 1 Manual Loads 0 Difficulty Rogue Special Mode None Game No. 16 Rogue 16 Adventurer 0 Explorer 0 Win Type - Total 0 Types 0/0/0/0/0/0/0/0/0/0 Lore% 21 Gallery% 20 Achievement% 19 Wizard Run 0 Options --------- Layout 1 ASCII 1 Keyboard 1 Movement Vi Keybinds 0 Fullscreen 2 Font 32/SmallcapsGlow Map View 50x35 Zoom Use 0% Tactical HUD 1 Map Filters NONE Filters NONE Steam 1 RUN: 6efe3127-b9d1-4f18-836c-b23b01895b09